[Event "Live Chess"]
[Site "Chess.com"]
[Date "2023.05.21"]
[Round "-"]
[White "Ninifu"]
[Black "slava_ukr"]
[Result "0-1"]
[WhiteElo "2021"]
[BlackElo "2337"]
[TimeControl "300"]
[EndTime "7:58:40 PDT"]
[Termination "slava_ukr won on time"]

1. d4 {[%clk 0:04:54.8]} 1... d5 {[%clk 0:04:58.3]} 2. c4 {[%clk 0:04:53.3]}
2... e5 {[%clk 0:04:57.3]} 3. dxe5 {[%clk 0:04:51.8]} 3... d4 {[%clk 0:04:56.6]}
4. a3 {[%clk 0:04:50.9]} 4... Nc6 {[%clk 0:04:55.6]} 5. e3 {[%clk 0:04:49.8]}
5... Nge7 {[%clk 0:04:52.9]} 6. exd4 {[%clk 0:04:41.9]} 6... Nxd4 {[%clk
0:04:51.7]} 7. Nf3 {[%clk 0:04:39.1]} 7... Nec6 {[%clk 0:04:46.5]} 8. Nxd4
{[%clk 0:04:35]} 8... Nxd4 {[%clk 0:04:44.9]} 9. Be3 {[%clk 0:04:32.6]} 9... c5
{[%clk 0:04:41.8]} 10. Bxd4 {[%clk 0:04:12.6]} 10... cxd4 {[%clk 0:04:35.7]} 11.
Bd3 {[%clk 0:04:09.5]} 11... Be7 {[%clk 0:04:17.9]} 12. O-O {[%clk 0:04:08.4]}
12... O-O {[%clk 0:04:16.8]} 13. Nd2 {[%clk 0:04:07.5]} 13... Qc7 {[%clk
0:04:10.4]} 14. Nf3 {[%clk 0:04:05.9]} 14... Bg4 {[%clk 0:04:08.5]} 15. Re1
{[%clk 0:04:03.7]} 15... Rfe8 {[%clk 0:04:03.9]} 16. Qe2 {[%clk 0:03:55.5]}
16... Bf8 {[%clk 0:04:01.6]} 17. Qe4 {[%clk 0:03:50.1]} 17... f5 {[%clk
0:03:56.5]} 18. Qd5+ {[%clk 0:03:42.6]} 18... Kh8 {[%clk 0:03:54.9]} 19. Ng5
{[%clk 0:03:38.3]} 19... Re7 {[%clk 0:03:32.4]} 20. e6 {[%clk 0:03:32.5]} 20...
Rd8 {[%clk 0:03:30.6]} 21. Qe5 {[%clk 0:02:59.9]} 21... Qxe5 {[%clk 0:03:11]}
22. Rxe5 {[%clk 0:02:56.8]} 22... Rde8 {[%clk 0:03:10.1]} 23. Rae1 {[%clk
0:02:49.8]} 23... g6 {[%clk 0:03:03.8]} 24. Nf7+ {[%clk 0:02:00.1]} 24... Kg8
{[%clk 0:03:01.1]} 25. Nd6 {[%clk 0:01:58.4]} 25... Rd8 {[%clk 0:02:58.1]} 26.
c5 {[%clk 0:01:55.8]} 26... Bg7 {[%clk 0:02:51.3]} 27. Rd5 {[%clk 0:01:41.8]}
27... f4 {[%clk 0:02:47.7]} 28. Bc4 {[%clk 0:01:26.1]} 28... Kf8 {[%clk
0:02:31.4]} 29. Nb5 {[%clk 0:01:09.8]} 29... Rxd5 {[%clk 0:02:23.1]} 30. Bxd5
{[%clk 0:01:06.4]} 30... d3 {[%clk 0:02:20.7]} 31. f3 {[%clk 0:00:55.2]} 31...
Bxe6 {[%clk 0:02:13.3]} 32. Bxe6 {[%clk 0:00:43]} 32... d2 {[%clk 0:02:09.4]}
33. Rd1 {[%clk 0:00:36.1]} 33... Rxe6 {[%clk 0:02:04.6]} 34. Rxd2 {[%clk
0:00:29.6]} 34... Ke7 {[%clk 0:01:59.9]} 35. b4 {[%clk 0:00:27.7]} 35... Re1+
{[%clk 0:01:57]} 36. Kf2 {[%clk 0:00:25.9]} 36... Rc1 {[%clk 0:01:53.7]} 37. g3
{[%clk 0:00:19.5]} 37... fxg3+ {[%clk 0:01:50.2]} 38. hxg3 {[%clk 0:00:18.3]}
38... a6 {[%clk 0:01:49.6]} 39. Nd6 {[%clk 0:00:14.9]} 39... b5 {[%clk 0:01:47]}
40. Ne4 {[%clk 0:00:09]} 40... Be5 {[%clk 0:01:43.8]} 41. c6 {[%clk 0:00:07.4]}
41... Rxc6 {[%clk 0:01:42.5]} 42. Nc5 {[%clk 0:00:05]} 42... Bd6 {[%clk
0:01:39]} 43. f4 {[%clk 0:00:01.7]} 43... a5 {[%clk 0:01:37.1]} 0-1

[Event "Live Chess"]
[Site "Chess.com"]
[Date "2023.05.21"]
[Round "-"]
[White "friarnator"]
[Black "MarkCheck"]
[Result "1-0"]
[WhiteElo "2030"]
[BlackElo "1571"]
[TimeControl "300"]
[EndTime "7:58:42 PDT"]
[Termination "friarnator won on time"]

1. e4 {[%clk 0:04:58.7]} 1... c5 {[%clk 0:04:58.6]} 2. d4 {[%clk 0:04:57.5]}
2... d6 {[%clk 0:04:58.3]} 3. c3 {[%clk 0:04:55.7]} 3... cxd4 {[%clk 0:04:49.8]}
4. Nf3 {[%clk 0:04:54.1]} 4... Nf6 {[%clk 0:04:44.4]} 5. Qxd4 {[%clk 0:04:48.6]}
5... Nc6 {[%clk 0:04:40.5]} 6. Bb5 {[%clk 0:04:47.9]} 6... Bd7 {[%clk
0:04:27.2]} 7. Bxc6 {[%clk 0:04:47]} 7... Bxc6 {[%clk 0:04:25.4]} 8. e5 {[%clk
0:04:46.1]} 8... dxe5 {[%clk 0:04:11.2]} 9. Nxe5 {[%clk 0:04:42.4]} 9... Qxd4
{[%clk 0:04:03.4]} 10. cxd4 {[%clk 0:04:40]} 10... Bxg2 {[%clk 0:04:02.8]} 11.
Rg1 {[%clk 0:04:38.2]} 11... Bd5 {[%clk 0:03:41.9]} 12. Nc3 {[%clk 0:04:37.3]}
12... a6 {[%clk 0:03:27.8]} 13. Bg5 {[%clk 0:04:35.5]} 13... e6 {[%clk
0:03:07.2]} 14. O-O-O {[%clk 0:04:30.5]} 14... Rc8 {[%clk 0:02:55.7]} 15. Kb1
{[%clk 0:04:27.9]} 15... Be7 {[%clk 0:02:40.4]} 16. Nxd5 {[%clk 0:04:21]} 16...
exd5 {[%clk 0:02:32.1]} 17. Rde1 {[%clk 0:04:14.6]} 17... O-O {[%clk 0:01:31.2]}
18. Bh6 {[%clk 0:04:12]} 18... Nh5 {[%clk 0:01:09.8]} 19. Nd7 {[%clk 0:04:09]}
19... Rfe8 {[%clk 0:01:04.4]} 20. Re5 {[%clk 0:03:46.4]} 20... g6 {[%clk
0:00:51.1]} 21. Rxh5 {[%clk 0:03:44.2]} 21... Bd8 {[%clk 0:00:27.7]} 22. Rxd5
{[%clk 0:03:39.2]} 22... Re2 {[%clk 0:00:20.6]} 23. Nc5 {[%clk 0:03:16.8]} 23...
Be7 {[%clk 0:00:11.2]} 24. Be3 {[%clk 0:03:03]} 24... Bxc5 {[%clk 0:00:07.8]}
25. dxc5 {[%clk 0:03:01.3]} 25... h5 {[%clk 0:00:03.2]} 26. Rd3 {[%clk
0:02:58.6]} 1-0

[Event "Live Chess"]
[Site "Chess.com"]
[Date "2023.05.21"]
[Round "-"]
[White "daveeeeR"]
[Black "Tiltador"]
[Result "1-0"]
[WhiteElo "1293"]
[BlackElo "871"]
[TimeControl "300"]
[EndTime "7:58:46 PDT"]
[Termination "daveeeeR won on time"]

1. d4 {[%clk 0:04:58.3]} 1... d5 {[%clk 0:04:58.8]} 2. Bf4 {[%clk 0:04:58]} 2...
e6 {[%clk 0:04:57.1]} 3. Nf3 {[%clk 0:04:57.9]} 3... Bd6 {[%clk 0:04:55.8]} 4.
e3 {[%clk 0:04:57.8]} 4... Bxf4 {[%clk 0:04:54.3]} 5. exf4 {[%clk 0:04:56.7]}
5... Nf6 {[%clk 0:04:51.4]} 6. Bd3 {[%clk 0:04:55]} 6... O-O {[%clk 0:04:50]} 7.
O-O {[%clk 0:04:53.9]} 7... Ne4 {[%clk 0:04:48.6]} 8. Nbd2 {[%clk 0:04:49.8]}
8... f5 {[%clk 0:04:41.6]} 9. Ne5 {[%clk 0:04:43.7]} 9... Nxd2 {[%clk
0:04:32.1]} 10. Qxd2 {[%clk 0:04:42.1]} 10... Nc6 {[%clk 0:04:30.6]} 11. c4
{[%clk 0:04:39.8]} 11... Nxd4 {[%clk 0:04:22.5]} 12. cxd5 {[%clk 0:04:37.4]}
12... exd5 {[%clk 0:04:18.2]} 13. Rac1 {[%clk 0:04:26.3]} 13... Nc6 {[%clk
0:04:16.3]} 14. Nxc6 {[%clk 0:04:24]} 14... bxc6 {[%clk 0:04:15.1]} 15. Bc2
{[%clk 0:04:19.9]} 15... Qf6 {[%clk 0:04:05.2]} 16. Rfe1 {[%clk 0:04:16]} 16...
Bb7 {[%clk 0:03:52.2]} 17. b3 {[%clk 0:04:13.2]} 17... a6 {[%clk 0:03:48.1]} 18.
Qa5 {[%clk 0:04:06.1]} 18... Rfc8 {[%clk 0:03:41.8]} 19. Qc3 {[%clk 0:03:53.1]}
19... Qxc3 {[%clk 0:03:37.9]} 20. Bxf5 {[%clk 0:03:50.9]} 20... Qf6 {[%clk
0:03:31.8]} 21. Bxc8 {[%clk 0:03:49.4]} 21... Rxc8 {[%clk 0:03:26.5]} 22. g3
{[%clk 0:03:44.9]} 22... Rf8 {[%clk 0:03:16.3]} 23. Re5 {[%clk 0:03:42.5]} 23...
Qd6 {[%clk 0:03:03.7]} 24. Rce1 {[%clk 0:03:38.4]} 24... Qa3 {[%clk 0:02:56.5]}
25. R1e2 {[%clk 0:03:34]} 25... Qc1+ {[%clk 0:02:47.1]} 26. Kg2 {[%clk
0:03:32.2]} 26... Qc5 {[%clk 0:02:38.2]} 27. Re7 {[%clk 0:03:28.2]} 27... Qd6
{[%clk 0:02:27.9]} 28. R2e6 {[%clk 0:03:24.4]} 28... Qd8 {[%clk 0:02:20.8]} 29.
a4 {[%clk 0:03:15.5]} 29... c5 {[%clk 0:02:18]} 30. a5 {[%clk 0:03:10]} 30...
d4+ {[%clk 0:02:16.6]} 31. f3 {[%clk 0:03:05.1]} 31... Qd5 {[%clk 0:02:11.7]}
32. Re2 {[%clk 0:02:55.4]} 32... Qxf3+ {[%clk 0:02:09.3]} 33. Kg1 {[%clk
0:02:50.9]} 33... Qh1+ {[%clk 0:02:00.2]} 34. Kf2 {[%clk 0:02:49.8]} 34... Qxh2+
{[%clk 0:01:53.6]} 35. Ke1 {[%clk 0:02:48.4]} 35... Qg1+ {[%clk 0:01:48]} 36.
Kd2 {[%clk 0:02:46.8]} 36... Qxg3 {[%clk 0:01:40.2]} 37. Rxc7 {[%clk 0:02:38.5]}
37... Bf3 {[%clk 0:01:31.2]} 38. Ree7 {[%clk 0:02:37]} 38... Qxf4+ {[%clk
0:01:27.3]} 39. Kc2 {[%clk 0:02:33.8]} 39... Qf5+ {[%clk 0:01:19.7]} 40. Kb2
{[%clk 0:02:31.3]} 40... Qf6 {[%clk 0:00:32.9]} 41. Re1 {[%clk 0:02:10.2]} 41...
d3+ {[%clk 0:00:29.7]} 42. Ka3 {[%clk 0:02:07.8]} 42... Be2 {[%clk 0:00:22.6]}
43. Rxc5 {[%clk 0:02:01.2]} 43... Qe7 {[%clk 0:00:13.7]} 44. b4 {[%clk
0:01:50.6]} 44... Qe4 {[%clk 0:00:11.4]} 45. Rg1 {[%clk 0:01:32.7]} 45... Qd4
{[%clk 0:00:09.1]} 46. Rcg5 {[%clk 0:01:23.1]} 46... g6 {[%clk 0:00:06.1]} 47.
R5g2 {[%clk 0:01:09.4]} 47... Qc3+ {[%clk 0:00:04.9]} 48. Ka2 {[%clk 0:01:06.4]}
48... Qc2+ {[%clk 0:00:03]} 49. Ka3 {[%clk 0:01:05.2]} 1-0

[Event "Live Chess"]
[Site "Chess.com"]
[Date "2023.05.21"]
[Round "-"]
[White "CheckThis4"]
[Black "lord_cll"]
[Result "1-0"]
[WhiteElo "2529"]
[BlackElo "1206"]
[TimeControl "300"]
[EndTime "7:58:50 PDT"]
[Termination "CheckThis4 won by resignation"]

1. d4 {[%clk 0:04:58.5]} 1... Nf6 {[%clk 0:04:58.7]} 2. Nc3 {[%clk 0:04:58]}
2... g6 {[%clk 0:04:58]} 3. e4 {[%clk 0:04:56.9]} 3... Bg7 {[%clk 0:04:52]} 4.
e5 {[%clk 0:04:56.2]} 4... Ng8 {[%clk 0:04:48.9]} 5. Nf3 {[%clk 0:04:53.9]} 5...
e6 {[%clk 0:04:43.6]} 6. h4 {[%clk 0:04:47.7]} 6... Ne7 {[%clk 0:04:41.9]} 7. h5
{[%clk 0:04:46.7]} 7... Na6 {[%clk 0:04:27.2]} 8. h6 {[%clk 0:04:43.5]} 8... Bf8
{[%clk 0:04:23.7]} 9. Bxa6 {[%clk 0:04:43]} 9... bxa6 {[%clk 0:04:21.9]} 10. Bg5
{[%clk 0:04:42.5]} 10... Bb7 {[%clk 0:04:19.3]} 11. Bf6 {[%clk 0:04:29.2]} 11...
Rg8 {[%clk 0:04:15.9]} 12. Ng5 {[%clk 0:04:28.8]} 12... c6 {[%clk 0:04:07.6]}
13. Nxh7 {[%clk 0:04:27.4]} 13... Qb6 {[%clk 0:04:02.2]} 14. Nxf8 {[%clk
0:04:19.5]} 14... Qxb2 {[%clk 0:03:49]} 15. Ne4 {[%clk 0:04:16.1]} 15... Rb8
{[%clk 0:03:38.7]} 16. Rb1 {[%clk 0:04:12.7]} 16... Qa3 {[%clk 0:03:29.2]} 17.
h7 {[%clk 0:04:10.1]} 17... Qa5+ {[%clk 0:03:21]} 18. c3 {[%clk 0:04:06.6]}
18... Kxf8 {[%clk 0:03:12.9]} 19. h8=Q {[%clk 0:03:46.1]} 19... Rxh8 {[%clk
0:03:07.9]} 20. Rxh8+ {[%clk 0:03:46]} 20... Ng8 {[%clk 0:03:07.1]} 21. Qd2
{[%clk 0:03:43.3]} 21... Qa3 {[%clk 0:02:33.8]} 22. Qh6+ {[%clk 0:03:40.8]} 1-0

[Event "Live Chess"]
[Site "Chess.com"]
[Date "2023.05.21"]
[Round "-"]
[White "Shepherds_Pie"]
[Black "Doge_Dandolo"]
[Result "0-1"]
[WhiteElo "1937"]
[BlackElo "1866"]
[TimeControl "300"]
[EndTime "7:58:52 PDT"]
[Termination "Doge_Dandolo won by resignation"]

1. c4 {[%clk 0:04:56.4]} 1... Nf6 {[%clk 0:04:58.1]} 2. Nc3 {[%clk 0:04:55.2]}
2... c5 {[%clk 0:04:57.1]} 3. Nf3 {[%clk 0:04:53.5]} 3... e6 {[%clk 0:04:56]} 4.
d4 {[%clk 0:04:52.3]} 4... cxd4 {[%clk 0:04:54.7]} 5. Nxd4 {[%clk 0:04:50.8]}
5... b6 {[%clk 0:04:53.4]} 6. e4 {[%clk 0:04:48.1]} 6... d6 {[%clk 0:04:51.3]}
7. Be2 {[%clk 0:04:46.5]} 7... a6 {[%clk 0:04:50]} 8. O-O {[%clk 0:04:45.3]}
8... Bb7 {[%clk 0:04:49.6]} 9. Qc2 {[%clk 0:04:43.2]} 9... Be7 {[%clk
0:04:48.4]} 10. Be3 {[%clk 0:04:42.1]} 10... Nbd7 {[%clk 0:04:47.2]} 11. f3
{[%clk 0:04:39.8]} 11... O-O {[%clk 0:04:45.5]} 12. Rad1 {[%clk 0:04:38.3]}
12... Rc8 {[%clk 0:04:44.5]} 13. b3 {[%clk 0:04:28.4]} 13... Re8 {[%clk
0:04:42.4]} 14. Qd2 {[%clk 0:04:27.1]} 14... Qc7 {[%clk 0:04:40.9]} 15. Qe1
{[%clk 0:04:25.7]} 15... Qb8 {[%clk 0:04:35.7]} 16. Qf2 {[%clk 0:04:23.8]} 16...
Ba8 {[%clk 0:04:33.7]} 17. g4 {[%clk 0:04:19.4]} 17... b5 {[%clk 0:04:20.8]} 18.
g5 {[%clk 0:04:12.7]} 18... Nh5 {[%clk 0:04:19.2]} 19. f4 {[%clk 0:04:11.1]}
19... g6 {[%clk 0:04:17.7]} 20. Bxh5 {[%clk 0:04:09.4]} 20... gxh5 {[%clk
0:04:16.7]} 21. Qh4 {[%clk 0:04:04.7]} 21... bxc4 {[%clk 0:04:15.1]} 22. bxc4
{[%clk 0:04:02.7]} 22... Rxc4 {[%clk 0:04:12.5]} 23. Nd5 {[%clk 0:03:57.6]}
23... exd5 {[%clk 0:04:09]} 24. Nf5 {[%clk 0:03:54.4]} 24... Rxe4 {[%clk
0:04:03.7]} 25. Qxh5 {[%clk 0:03:52.1]} 25... Rxe3 {[%clk 0:03:56.9]} 26. Nh6+
{[%clk 0:03:50.4]} 26... Kh8 {[%clk 0:03:53]} 27. Nxf7+ {[%clk 0:03:46.5]} 27...
Kg7 {[%clk 0:03:50.6]} 28. Nh6 {[%clk 0:03:38.6]} 28... Rf8 {[%clk 0:03:43.3]}
29. f5 {[%clk 0:03:34.3]} 29... Ne5 {[%clk 0:03:38.6]} 30. f6+ {[%clk 0:03:31]}
30... Bxf6 {[%clk 0:03:34.9]} 31. gxf6+ {[%clk 0:03:26.5]} 31... Rxf6 {[%clk
0:03:33.3]} 32. Rxf6 {[%clk 0:03:25.2]} 32... Kxf6 {[%clk 0:03:32]} 33. Rf1+
{[%clk 0:03:22.9]} 33... Ke6 {[%clk 0:03:24.7]} 34. Ng4 {[%clk 0:03:03.7]} 34...
Qg8 {[%clk 0:03:19.6]} 35. h3 {[%clk 0:02:55.6]} 35... d4 {[%clk 0:03:07.4]} 36.
Rf6+ {[%clk 0:02:29.7]} 36... Kd5 {[%clk 0:02:57.1]} 37. Kf2 {[%clk 0:02:26.1]}
37... Rxh3 {[%clk 0:02:44.1]} 38. Qxh3 {[%clk 0:02:03.2]} 38... Nxg4+ {[%clk
0:02:42.2]} 39. Ke2 {[%clk 0:02:02]} 39... Nxf6 {[%clk 0:02:39.8]} 40. Qf3+
{[%clk 0:02:01]} 40... Ke6 {[%clk 0:02:35.1]} 41. Qb3+ {[%clk 0:01:58.3]} 41...
Bd5 {[%clk 0:02:28.8]} 0-1

[Event "Live Chess"]
[Site "Chess.com"]
[Date "2023.05.21"]
[Round "-"]
[White "wadsy27"]
[Black "Rusty_Bridges"]
[Result "1-0"]
[WhiteElo "2539"]
[BlackElo "1506"]
[TimeControl "300"]
[EndTime "7:58:59 PDT"]
[Termination "wadsy27 won by resignation"]

1. c4 {[%clk 0:04:57.8]} 1... e5 {[%clk 0:04:53.2]} 2. g3 {[%clk 0:04:54.9]}
2... Bc5 {[%clk 0:04:49.2]} 3. Bg2 {[%clk 0:04:53.6]} 3... Nc6 {[%clk
0:04:45.2]} 4. Nc3 {[%clk 0:04:52.3]} 4... Nf6 {[%clk 0:04:42.5]} 5. Nf3 {[%clk
0:04:48.8]} 5... d6 {[%clk 0:04:38.6]} 6. d3 {[%clk 0:04:48.1]} 6... Be6 {[%clk
0:04:30.3]} 7. O-O {[%clk 0:04:46.4]} 7... Qd7 {[%clk 0:04:27]} 8. e3 {[%clk
0:04:43.9]} 8... Bh3 {[%clk 0:04:25.1]} 9. a3 {[%clk 0:04:42.3]} 9... Bxg2
{[%clk 0:04:23.3]} 10. Kxg2 {[%clk 0:04:41.8]} 10... h5 {[%clk 0:04:14.4]} 11.
h4 {[%clk 0:04:36.8]} 11... Ng4 {[%clk 0:04:08.3]} 12. b4 {[%clk 0:04:34.6]}
12... Bb6 {[%clk 0:04:03.9]} 13. d4 {[%clk 0:04:33.6]} 13... exd4 {[%clk
0:03:54.1]} 14. exd4 {[%clk 0:04:33.5]} 14... a6 {[%clk 0:03:46.4]} 15. c5
{[%clk 0:04:32.1]} 15... dxc5 {[%clk 0:03:40.2]} 16. dxc5 {[%clk 0:04:32]} 16...
Qxd1 {[%clk 0:03:38.2]} 17. Rxd1 {[%clk 0:04:31.9]} 17... Ba7 {[%clk 0:03:35.2]}
18. Re1+ {[%clk 0:04:31.4]} 18... Ne7 {[%clk 0:03:27.7]} 19. Nd5 {[%clk
0:04:21.4]} 1-0

[Event "Live Chess"]
[Site "Chess.com"]
[Date "2023.05.21"]
[Round "-"]
[White "LL220284LL"]
[Black "KeithArkell"]
[Result "1/2-1/2"]
[WhiteElo "2231"]
[BlackElo "2457"]
[TimeControl "300"]
[EndTime "7:59:06 PDT"]
[Termination "Game drawn - insufficient material"]

1. b3 {[%clk 0:04:57.2]} 1... b5 {[%clk 0:04:58.4]} 2. Bb2 {[%clk 0:04:57.1]}
2... Bb7 {[%clk 0:04:57.1]} 3. e3 {[%clk 0:04:56.3]} 3... Nf6 {[%clk 0:04:52.9]}
4. Nf3 {[%clk 0:04:55.1]} 4... b4 {[%clk 0:04:52.1]} 5. d4 {[%clk 0:04:53.4]}
5... e6 {[%clk 0:04:48.8]} 6. Bd3 {[%clk 0:04:52.3]} 6... c5 {[%clk 0:04:47.9]}
7. O-O {[%clk 0:04:51]} 7... cxd4 {[%clk 0:04:47.2]} 8. Nxd4 {[%clk 0:04:47.7]}
8... Nc6 {[%clk 0:04:43.8]} 9. Ne2 {[%clk 0:04:43.7]} 9... Be7 {[%clk
0:04:42.7]} 10. a3 {[%clk 0:04:42.6]} 10... a5 {[%clk 0:04:41.2]} 11. axb4
{[%clk 0:04:37.7]} 11... axb4 {[%clk 0:04:41.1]} 12. Nd2 {[%clk 0:04:37.1]}
12... Rxa1 {[%clk 0:04:35.7]} 13. Qxa1 {[%clk 0:04:35.8]} 13... O-O {[%clk
0:04:34.5]} 14. Nf3 {[%clk 0:04:33.3]} 14... Qc7 {[%clk 0:04:32.2]} 15. Rd1
{[%clk 0:04:31.6]} 15... Ra8 {[%clk 0:04:30.9]} 16. Qc1 {[%clk 0:04:29.7]} 16...
h6 {[%clk 0:04:25.7]} 17. Ned4 {[%clk 0:04:28.1]} 17... Nxd4 {[%clk 0:04:24.4]}
18. Nxd4 {[%clk 0:04:27.7]} 18... Ne8 {[%clk 0:04:06]} 19. Qd2 {[%clk
0:04:22.4]} 19... Qb6 {[%clk 0:03:46]} 20. Be2 {[%clk 0:04:13.8]} 20... Bf6
{[%clk 0:03:42.4]} 21. Qc1 {[%clk 0:04:06.3]} 21... Nd6 {[%clk 0:03:36.5]} 22.
Bf3 {[%clk 0:04:02.1]} 22... Bxf3 {[%clk 0:03:34.7]} 23. Nxf3 {[%clk 0:04:02]}
23... Bxb2 {[%clk 0:03:31.8]} 24. Qxb2 {[%clk 0:04:01.9]} 24... Ra7 {[%clk
0:03:27.6]} 25. h3 {[%clk 0:03:56.2]} 25... Ne4 {[%clk 0:03:26.5]} 26. Qe5
{[%clk 0:03:52.2]} 26... d5 {[%clk 0:03:22.1]} 27. Nd4 {[%clk 0:03:45.1]} 27...
Nc3 {[%clk 0:03:18.5]} 28. Re1 {[%clk 0:03:40.4]} 28... Qc7 {[%clk 0:03:15.7]}
29. Qxc7 {[%clk 0:03:36.2]} 29... Rxc7 {[%clk 0:03:15.6]} 30. Ra1 {[%clk
0:03:35.3]} 30... g6 {[%clk 0:03:10.2]} 31. Ra8+ {[%clk 0:03:33.2]} 31... Kg7
{[%clk 0:03:08.8]} 32. Rb8 {[%clk 0:03:32.7]} 32... e5 {[%clk 0:03:07.4]} 33.
Nf3 {[%clk 0:03:30.9]} 33... Ne2+ {[%clk 0:03:05]} 34. Kh2 {[%clk 0:03:28.7]}
34... f6 {[%clk 0:03:01.9]} 35. Rxb4 {[%clk 0:03:26]} 35... Rxc2 {[%clk
0:03:00.9]} 36. Rb7+ {[%clk 0:03:23.7]} 36... Kg8 {[%clk 0:02:59.7]} 37. Rd7
{[%clk 0:03:22]} 37... Nc1 {[%clk 0:02:27.1]} 38. Kg3 {[%clk 0:03:14.6]} 38...
Nd3 {[%clk 0:02:13.9]} 39. Nh4 {[%clk 0:03:01.1]} 39... Nxf2 {[%clk 0:02:09.9]}
40. Nxg6 {[%clk 0:03:00.1]} 40... Ne4+ {[%clk 0:02:08.6]} 41. Kh2 {[%clk
0:02:58.4]} 41... Rc3 {[%clk 0:01:59.3]} 42. Ne7+ {[%clk 0:02:55.1]} 42... Kf8
{[%clk 0:01:58.3]} 43. Nxd5 {[%clk 0:02:51.8]} 43... Rxb3 {[%clk 0:01:57.5]} 44.
Nc7 {[%clk 0:02:50]} 44... Rxe3 {[%clk 0:01:35]} 45. Ne6+ {[%clk 0:02:45.1]}
45... Kg8 {[%clk 0:01:33.2]} 46. Rg7+ {[%clk 0:02:43]} 46... Kh8 {[%clk
0:01:32.4]} 47. Rg6 {[%clk 0:02:42.3]} 47... h5 {[%clk 0:01:25.1]} 48. Rh6+
{[%clk 0:02:25.1]} 48... Kg8 {[%clk 0:01:24.3]} 49. Rxh5 {[%clk 0:02:24.7]}
49... Kf7 {[%clk 0:01:23.6]} 50. Nc7 {[%clk 0:02:19.9]} 50... Kg6 {[%clk
0:01:21.7]} 51. Rh8 {[%clk 0:02:18.6]} 51... f5 {[%clk 0:01:19.7]} 52. Nd5
{[%clk 0:02:16.8]} 52... Rd3 {[%clk 0:01:14.5]} 53. Rd8 {[%clk 0:02:15.8]} 53...
Kf7 {[%clk 0:01:11.6]} 54. Rd7+ {[%clk 0:02:09.3]} 54... Ke6 {[%clk 0:01:08.6]}
55. Nf4+ {[%clk 0:02:07.7]} 55... Kxd7 {[%clk 0:01:06.6]} 56. Nxd3 {[%clk
0:02:07.6]} 56... Ke6 {[%clk 0:01:04.9]} 57. g3 {[%clk 0:02:05.6]} 57... Kd5
{[%clk 0:01:03.3]} 58. Kg2 {[%clk 0:02:04.4]} 58... Kd4 {[%clk 0:01:02.7]} 59.
Ne1 {[%clk 0:02:02.6]} 59... Nf6 {[%clk 0:00:56.8]} 60. g4 {[%clk 0:01:55.1]}
60... fxg4 {[%clk 0:00:47.5]} 61. hxg4 {[%clk 0:01:54.1]} 61... Nxg4 {[%clk
0:00:46.1]} 62. Nf3+ {[%clk 0:01:53.1]} 62... Ke4 {[%clk 0:00:45.5]} 63. Nxe5
{[%clk 0:01:53]} 1/2-1/2

[Event "Live Chess"]
[Site "Chess.com"]
[Date "2023.05.21"]
[Round "-"]
[White "AMCWAML"]
[Black "BillythekidFellowes"]
[Result "1/2-1/2"]
[WhiteElo "2241"]
[BlackElo "2116"]
[TimeControl "300"]
[EndTime "7:59:12 PDT"]
[Termination "Game drawn by agreement"]

1. e4 {[%clk 0:04:57.7]} 1... Nc6 {[%clk 0:04:58.6]} 2. d4 {[%clk 0:04:56.7]}
2... d5 {[%clk 0:04:58]} 3. exd5 {[%clk 0:04:55.4]} 3... Qxd5 {[%clk 0:04:57.9]}
4. Nc3 {[%clk 0:04:55]} 4... Qxd4 {[%clk 0:04:57]} 5. Be3 {[%clk 0:04:52.6]}
5... Qxd1+ {[%clk 0:04:56.3]} 6. Rxd1 {[%clk 0:04:52.5]} 6... e5 {[%clk
0:04:54.1]} 7. Nb5 {[%clk 0:04:50.3]} 7... Bd6 {[%clk 0:04:53.1]} 8. Nxd6+
{[%clk 0:04:48.8]} 8... cxd6 {[%clk 0:04:53]} 9. Rxd6 {[%clk 0:04:48.3]} 9...
Nge7 {[%clk 0:04:52.9]} 10. Bb5 {[%clk 0:04:47.4]} 10... Bd7 {[%clk 0:04:50.9]}
11. Nf3 {[%clk 0:04:46]} 11... O-O-O {[%clk 0:04:50.3]} 12. O-O {[%clk
0:04:43.1]} 12... f6 {[%clk 0:04:48]} 13. Rfd1 {[%clk 0:04:41.3]} 13... Bg4
{[%clk 0:04:45.1]} 14. Rxd8+ {[%clk 0:04:38.3]} 14... Rxd8 {[%clk 0:04:45]} 15.
Rxd8+ {[%clk 0:04:37.5]} 15... Nxd8 {[%clk 0:04:44.9]} 16. Nd2 {[%clk
0:04:35.2]} 16... a6 {[%clk 0:04:43]} 17. Bd3 {[%clk 0:04:33.4]} 17... Bf5
{[%clk 0:04:37.7]} 18. Ne4 {[%clk 0:04:30.4]} 18... Kc7 {[%clk 0:04:33.3]} 19.
h3 {[%clk 0:04:26.6]} 19... Nf7 {[%clk 0:04:25.5]} 20. g4 {[%clk 0:04:25.5]}
20... Bg6 {[%clk 0:04:24.6]} 21. f3 {[%clk 0:04:20.2]} 21... Nd6 {[%clk
0:04:21.6]} 22. Nxd6 {[%clk 0:04:16.8]} 22... Kxd6 {[%clk 0:04:21]} 23. Kf2
{[%clk 0:04:15.6]} 23... b5 {[%clk 0:04:17.4]} 24. Ke2 {[%clk 0:04:12.8]}
1/2-1/2

[Event "Live Chess"]
[Site "Chess.com"]
[Date "2023.05.21"]
[Round "-"]
[White "Conradical12"]
[Black "GEMdzq"]
[Result "0-1"]
[WhiteElo "1532"]
[BlackElo "2227"]
[TimeControl "300"]
[EndTime "7:59:12 PDT"]
[Termination "GEMdzq won by resignation"]

1. e4 {[%clk 0:04:55.2]} 1... d6 {[%clk 0:04:59.4]} 2. Nf3 {[%clk 0:04:54.3]}
2... Nf6 {[%clk 0:04:59]} 3. Nc3 {[%clk 0:04:52.5]} 3... g6 {[%clk 0:04:58.5]}
4. d4 {[%clk 0:04:50.8]} 4... Bg7 {[%clk 0:04:57.9]} 5. Be3 {[%clk 0:04:50]}
5... c6 {[%clk 0:04:55.7]} 6. Qd2 {[%clk 0:04:49.9]} 6... b5 {[%clk 0:04:54.8]}
7. O-O-O {[%clk 0:04:49.3]} 7... b4 {[%clk 0:04:53.6]} 8. Ne2 {[%clk 0:04:49]}
8... Nxe4 {[%clk 0:04:52.7]} 9. Qd3 {[%clk 0:04:47.2]} 9... Bf5 {[%clk
0:04:45.6]} 10. Ng3 {[%clk 0:04:45.9]} 10... Nxg3 {[%clk 0:04:43.8]} 11. hxg3
{[%clk 0:04:39.9]} 11... Bxd3 {[%clk 0:04:42.4]} 0-1